bitfinex-derivatives/quotes_ETHF0:USTF0_20240930
["timestamp","ask_amount","ask_price","bid_price","bid_amount"]
[1727725550283,0.3671,2598.6,2598.4,0.4039]
[1727725550484,0.38493,2598.5,2598.4,0.4039]
[1727725552186,0.38494,2598.4,2598.3,3.2078]
[1727725552776,4.03941,2598.6,2598.3,3.2078]
[1727725552777,1.32941,2598.6,2598.3,3.2078]
[1727725552983,0.38494,2598.5,2598.3,3.2078]
[1727725553581,0.3671,2598.6,2598.3,3.2078]
[1727725553887,0.38494,2598.4,2598.3,3.2078]
[1727725554287,0.38493,2598.5,2598.3,3.59275]
[1727725554488,0.3671,2598.6,2598.3,3.2078]
[1727725554687,0.38494,2598.4,2598.3,3.2078]
[1727725555391,0.38494,2598.5,2598.3,3.2078]
[1727725555689,1.32941,2598.6,2598.3,3.2078]
[1727725555878,0.38494,2598.4,2598.3,3.2078]
[1727725556083,0.38494,2598.5,2598.3,3.2078]
[1727725556279,0.4008,2598.9,2598.4,6.5588]
[1727725556485,0.4008,2598.9,2598.5,0.75822]
[1727725556686,0.4008,2598.9,2598.5,0.7565]
[1727725556887,0.4008,2598.9,2598.5,1.14142]
[1727725556888,0.38488,2598.8,2598.5,1.14142]
[1727725557491,0.38488,2598.9,2598.6,0.38491]
[1727725557687,0.3856,2599.0,2598.7,3.59269]
[1727725557892,0.38487,2598.9,2598.7,3.2078]
[1727725558191,0.38487,2598.9,2598.7,3.5927]
[1727725558592,0.77047,2599.0,2598.7,3.2078]
[1727725558792,0.38487,2598.9,2598.7,3.59269]
[1727725558984,0.77046,2599.0,2598.7,3.59269]
[1727725559184,0.38488,2598.9,2598.7,3.2078]
[1727725559386,0.3856,2599.0,2598.7,3.2078]
[1727725559591,0.77046,2599.0,2598.7,3.2078]
[1727725559890,0.3856,2599.0,2598.7,3.2078]
[1727725560093,0.38487,2598.9,2598.7,3.2078]
[1727725560286,0.78465,2599.1,2598.8,0.38488]
[1727725560487,0.78453,2599.2,2599.0,3.2078]
[1727725560689,0.38484,2599.1,2599.0,3.2078]
[1727725562803,1.74154,2599.3,2599.0,3.2078]
[1727725562991,0.38484,2599.1,2599.0,3.2078]
[1727725566896,1.74154,2599.3,2599.0,3.2078]
[1727725566897,0.7795,2599.3,2599.0,3.2078]
[1727725567087,0.38483,2599.2,2599.0,3.59265]
[1727725567489,0.38483,2599.2,2599.0,3.98195]
[1727725567690,0.7795,2599.3,2599.0,3.5971]
[1727725567889,0.38483,2599.2,2599.0,3.98195]
[1727725568297,0.7795,2599.3,2599.0,3.5971]
[1727725568499,0.38484,2599.1,2599.0,3.5971]
[1727725569190,0.38484,2599.1,2599.0,3.2078]
[1727725569396,0.38484,2599.1,2598.3,3.2078]
[1727725569397,3.8472,2599.1,2598.3,3.2078]
[1727725569598,0.3908,2599.0,2598.6,3.2078]
[1727725569898,0.77566,2599.0,2598.8,0.38487]
[1727725570091,0.77566,2599.0,2598.9,0.38487]
[1727725570402,1.74155,2599.3,2599.0,0.38485]
[1727725570403,0.38485,2599.1,2599.0,0.38485]
[1727725570898,0.38485,2599.0,2598.9,3.59266]
[1727725571198,0.38485,2599.0,2598.9,3.2078]
[1727725571787,3.67207,2599.2,2598.7,0.3929]
[1727725571788,2.71,2599.2,2598.7,0.3929]
[1727725571994,0.38488,2598.8,2598.7,0.3929]
[1727725572394,1.14388,2598.8,2598.7,0.3929]
[1727725573297,0.38486,2599.0,2598.9,0.38487]
[1727725573490,1.14131,2599.3,2599.1,0.38483]
[1727725573686,0.38482,2599.2,2599.1,2.71]
[1727725573899,0.77451,2599.3,2599.1,3.09484]
[1727725574094,0.77451,2599.3,2599.1,0.38483]
[1727725574095,0.3897,2599.3,2599.1,0.38483]
[1727725574493,0.77452,2599.3,2599.1,0.38483]
[1727725574691,0.38483,2599.2,2599.0,3.59265]
[1727725576297,0.77452,2599.3,2599.1,0.38483]
[1727725576500,0.77452,2599.3,2599.0,3.2078]
[1727725576698,0.77452,2599.3,2599.1,0.38483]
[1727725576899,0.38482,2599.2,2599.0,3.59265]
[1727725577207,0.3897,2599.3,2599.0,3.2078]
[1727725577698,0.38482,2599.2,2599.0,3.59265]
[1727725577901,0.77452,2599.3,2599.0,3.2078]
[1727725578097,0.7361,2599.5,2599.0,3.2078]
[1727725578098,1.69807,2599.5,2599.0,3.2078]
[1727725578305,1.69807,2599.5,2599.1,0.38484]
[1727725578306,0.38482,2599.3,2599.1,0.38484]
[1727725578500,1.69807,2599.5,2599.0,3.2078]
[1727725578694,0.38484,2599.1,2599.0,3.2078]
[1727725579502,0.38488,2598.8,2598.7,3.2078]
[1727725582493,3.848,2598.8,2598.4,3.2078]
[1727725582698,0.38497,2598.2,2598.1,3.2078]
[1727725582893,0.385,2598.0,2597.9,3.1138]
[1727725583092,0.385,2598.0,2597.9,6.3216]
[1727725583303,0.385,2598.0,2597.9,10.1704]
[1727725583901,0.385,2598.0,2597.9,3.2078]
[1727725587300,0.3853,2598.1,2597.7,0.3897]
[1727725587502,0.38503,2597.8,2597.7,0.3897]
[1727725588609,0.38503,2597.8,2597.7,3.0997]
[1727725590111,0.38503,2597.8,2597.7,3.48475]
[1727725590502,0.38501,2598.0,2597.9,0.38501]
[1727725590705,0.38501,2598.0,2597.9,3.59282]
[1727725590909,0.38501,2598.0,2597.9,3.2078]
[1727725591608,0.38501,2598.0,2597.9,3.59282]
[1727725591910,0.38501,2598.0,2597.9,3.2078]
[1727725592610,0.3853,2598.1,2597.7,0.3897]
[1727725592803,0.38503,2597.8,2597.7,0.3897]
[1727725594709,0.38503,2597.8,2597.7,0.77475]
[1727725595811,0.38503,2597.8,2597.7,0.3897]
[1727725596011,0.38503,2597.8,2597.7,0.77475]
[1727725596607,0.38502,2598.0,2597.9,0.38501]
[1727725596801,0.38502,2598.0,2597.9,3.59281]
[1727725598617,0.38502,2598.0,2597.9,3.59282]
[1727725599217,0.38502,2598.0,2597.9,3.2078]
[1727725599519,0.38502,2598.0,2597.9,3.59282]
[1727725601609,0.3853,2598.1,2597.9,3.2078]
[1727725601916,0.77029,2598.1,2598.0,0.385]
[1727725602314,0.77029,2598.1,2597.9,3.59281]
[1727725603813,0.77029,2598.1,2597.9,3.2078]
[1727725603814,0.3853,2598.1,2597.9,3.2078]
[1727725604015,0.7703,2598.1,2598.0,0.385]
[1727725604219,1.76108,2598.4,2598.0,0.38499]
[1727725604220,0.38498,2598.2,2598.0,0.38499]
[1727725604515,0.38498,2598.2,2598.1,0.3775]
[1727725606911,2.13678,2598.4,2597.9,3.59281]
[1727725606912,0.385,2598.1,2597.9,3.59281]
[1727725607117,0.385,2598.0,2597.9,3.59281]
[1727725607318,0.7678,2598.0,2597.9,3.2078]
[1727725608123,0.76781,2598.0,2597.8,0.75432]
[1727725608319,0.76781,2598.0,2597.9,3.2078]
[1727725609820,3.47781,2598.0,2597.9,3.2078]
[1727725610019,3.47781,2598.0,2597.6,0.3703]
[1727725610020,0.38505,2597.7,2597.6,0.3703]
[1727725610216,0.38505,2597.7,2597.5,3.2078]
[1727725610217,0.38506,2597.6,2597.5,3.2078]
[1727725610411,0.78586,2597.6,2597.5,3.2078]
[1727725610619,0.4008,2597.6,2597.5,3.2078]
[1727725610810,0.4008,2597.6,2597.5,3.59288]
[1727725611015,0.7687,2597.9,2597.5,9.7674]
[1727725611216,1.15372,2597.9,2597.8,3.2078]
[1727725612335,0.7687,2597.9,2597.8,3.2078]
[1727725612622,0.7458,2598.2,2597.8,3.2078]
[1727725612824,0.385,2598.1,2597.9,0.38502]
[1727725613220,0.385,2598.1,2598.0,0.3728]
[1727725616221,0.7458,2598.2,2598.0,0.3728]
[1727725616427,0.38499,2598.1,2598.0,0.3728]
[1727725617326,0.7458,2598.2,2598.0,0.3728]
[1727725617525,0.38499,2598.1,2598.0,0.3728]
[1727725617726,0.38499,2598.1,2598.0,3.5806]
[1727725618920,0.7458,2598.2,2598.0,3.5806]
[1727725619126,1.13079,2598.2,2598.0,3.9656]
[1727725619332,0.4066,2598.3,2598.0,7.4294]
[1727725619629,0.4066,2598.3,2598.1,0.3691]
[1727725619838,0.38497,2598.2,2598.1,0.3691]
[1727725620417,0.38498,2598.2,2598.0,3.9656]
[1727725620723,1.36901,2598.3,2598.0,3.9656]
[1727725620724,0.38499,2598.1,2598.0,3.9656]
[1727725621222,0.38499,2598.1,2598.0,3.5806]
[1727725621419,0.38499,2598.1,2598.0,3.9656]
[1727725622323,0.4066,2598.3,2598.0,3.5806]
[1727725622524,1.76614,2598.5,2598.0,3.5806]
[1727725622722,0.38498,2598.2,2598.1,0.38498]
[1727725623024,0.96237,2598.4,2598.0,3.5806]
[1727725623226,0.38499,2598.2,2598.0,3.96559]
[1727725623437,0.38499,2598.2,2598.1,0.38499]
[1727725624130,0.38499,2598.1,2598.0,3.9656]
[1727725624624,0.38499,2598.1,2598.0,3.2078]
[1727725624835,0.38503,2597.8,2597.7,3.2078]
[1727725625123,0.96263,2597.7,2597.0,4.21580467]
[1727725625320,0.96263,2597.7,2597.3,3.2078]
[1727725625524,2.71,2597.8,2597.3,3.2078]
[1727725625722,0.96256,2597.9,2597.3,3.5929]
[1727725625723,0.38506,2597.6,2597.3,3.5929]
[1727725626615,0.38508,2597.6,2597.3,3.5929]
[1727725626820,0.77508,2597.5,2597.3,3.5929]
[1727725627029,0.39,2597.5,2597.3,3.59289]
[1727725627332,0.77508,2597.5,2597.3,3.5929]
[1727725627630,1.56098,2597.5,2597.3,3.2078]
[1727725627825,1.56098,2597.5,2597.3,3.59291]
[1727725628227,1.56098,2597.5,2597.3,3.2078]
[1727725628526,3.8859,2597.5,2597.3,3.2078]
[1727725628833,0.38509,2597.4,2597.3,3.2078]
[1727725630929,0.38514,2597.1,2597.0,3.2078]
[1727725631625,0.38512,2597.3,2597.1,0.38513]
[1727725631817,0.38512,2597.3,2597.1,0.78483]
[1727725632024,4.84862,2597.5,2597.1,0.78483]
[1727725632223,0.38511,2597.3,2597.1,0.78483]
[1727725632627,4.84862,2597.5,2597.1,0.3997]
[1727725632828,0.38512,2597.2,2597.1,0.3997]
[1727725633935,4.84862,2597.5,2597.1,0.3997]
[1727725634129,0.38512,2597.2,2597.1,0.3997]
[1727725638337,0.38512,2597.3,2597.1,0.78483]
[1727725638542,0.38511,2597.4,2597.2,0.38512]
[1727725638733,0.38511,2597.4,2597.3,3.2078]
[1727725639738,0.38509,2597.4,2597.3,3.5929]
[1727725640038,0.38509,2597.4,2597.3,3.59291]
[1727725640437,0.38509,2597.4,2597.3,3.2078]
[1727725640636,0.38509,2597.4,2597.3,3.59291]
[1727725641042,0.38509,2597.4,2597.3,3.2078]
[1727725641539,0.77299,2597.4,2597.3,3.2078]
[1727725643336,0.38512,2597.2,2597.1,0.3997]
[1727725644333,0.38514,2597.1,2597.0,3.2078]
[1727725644530,0.38514,2597.1,2597.0,3.59295]
[1727725644729,0.38514,2597.1,2597.0,3.2078]
[1727725644930,0.38514,2597.1,2597.0,3.59295]
[1727725647239,0.38513,2597.2,2597.1,0.38512]
[1727725649031,0.4018,2597.3,2597.2,0.38512]
[1727725649238,0.38509,2597.5,2597.4,0.38509]
[1727725649538,3.67256,2597.9,2597.7,0.38505]
[1727725649539,0.3747,2597.8,2597.7,0.38505]
[1727725649728,0.9625,2598.1,2597.8,0.38503]
[1727725649729,0.38501,2598.0,2597.8,0.38503]
[1727725649936,0.7874,2598.1,2597.7,3.2078]
[1727725649937,1.1621,2598.1,2597.7,3.2078]
[1727725650136,3.8721,2598.1,2597.7,3.2078]
[1727725650336,1.1621,2598.1,2598.0,3.2078]
[1727725650537,0.38497,2598.3,2598.0,3.5928]
[1727725650743,0.38497,2598.3,2598.0,3.2078]
[1727725651038,0.38497,2598.3,2598.1,0.38499]
[1727725651240,0.38497,2598.3,2598.0,3.2078]
[1727725651442,0.38497,2598.3,2598.0,3.59279]
[1727725651743,0.38497,2598.3,2598.0,3.5928]
[1727725651928,0.38498,2598.2,2598.0,3.5928]
[1727725652134,0.7879,2598.4,2598.0,3.5928]
[1727725652330,0.38496,2598.3,2598.1,0.38499]
[1727725652630,0.38496,2598.3,2598.1,0.76118]
[1727725653237,2.71,2598.6,2598.1,0.3762]
[1727725653439,2.71,2598.6,2598.3,3.2078]
[1727725653637,2.71,2598.6,2598.3,3.59276]
[1727725653638,0.38493,2598.5,2598.3,3.59276]
[1727725654029,0.38493,2598.6,2598.3,3.59276]
[1727725654230,0.7879,2598.7,2598.3,3.2078]
[1727725654440,0.3908,2598.7,2598.6,3.59271]
[1727725654740,0.38489,2598.8,2598.6,3.2078]
[1727725654935,0.387,2599.0,2598.6,3.2078]
[1727725655134,0.38485,2599.1,2598.9,3.2078]
[1727725655540,4.18,2599.2,2598.9,3.2078]
[1727725655541,0.38485,2599.0,2598.9,3.2078]
[1727725657440,0.38485,2599.1,2598.9,3.59266]
[1727725657746,0.38485,2599.1,2598.9,3.2078]
[1727725658536,0.38484,2599.1,2598.9,3.2078]
[1727725658741,0.38485,2599.0,2598.9,3.2078]
[1727725659042,4.18,2599.2,2598.9,3.2078]
[1727725659242,0.38485,2599.1,2598.9,3.2078]
[1727725659542,3.097,2599.3,2598.9,3.2078]
[1727725659846,0.77181,2599.3,2599.2,3.2078]
[1727725660243,0.38479,2599.5,2599.2,10.14982]
[1727725660448,0.96188,2599.7,2599.3,0.3796]
[1727725660645,0.38478,2599.6,2599.5,3.2078]
[1727725661944,3.8472,2599.6,2599.2,3.2078]
[1727725662142,3.67199,2599.5,2599.2,3.2078]
[1727725662346,3.67199,2599.5,2598.9,0.38486]
[1727725662347,0.38485,2599.0,2598.9,3.2078]
[1727725663540,0.7827,2599.2,2598.9,3.2078]
[1727725663837,0.38485,2599.0,2598.9,3.2078]
[1727725664039,1.16753,2599.2,2598.9,3.2078]
[1727725664239,1.16753,2599.2,2599.0,0.38485]
[1727725664442,0.3895,2599.2,2599.0,0.38485]
[1727725664638,0.3895,2599.2,2598.9,3.59266]
[1727725664840,0.3843,2599.4,2598.9,3.2078]
[1727725665043,0.3848,2599.4,2599.2,3.59262]
[1727725665348,3.4702,2599.7,2599.2,3.2078]
[1727725665545,0.38479,2599.5,2599.3,0.3904]
[1727725666053,0.38479,2599.5,2599.3,0.7796]
[1727725666251,0.3848,2599.4,2599.3,0.3892]
[1727725667159,1.14496,2599.7,2599.4,0.38479]
[1727725667341,0.7602,2599.7,2599.4,0.3946]
[1727725667655,0.38477,2599.6,2599.4,0.3946]
[1727725668242,0.38478,2599.6,2599.4,0.3946]
[1727725668745,1.72209,2599.7,2599.4,0.3946]
[1727725668946,0.7602,2599.7,2599.4,0.3946]
[1727725669148,0.3895,2599.7,2599.5,3.59257]
[1727725669351,0.77425,2599.7,2599.5,3.59257]
[1727725669749,0.77426,2599.7,2599.5,3.2078]
[1727725670151,0.77425,2599.7,2599.5,3.59258]
[1727725670344,0.77425,2599.7,2599.5,3.2078]
[1727725670548,0.77425,2599.7,2599.5,3.59258]
[1727725670749,0.77425,2599.7,2599.5,3.2078]
[1727725671355,0.3895,2599.7,2599.5,3.2078]
[1727725671557,0.38477,2599.6,2599.5,3.2078]
[1727725672259,3.8472,2599.6,2599.2,3.2078]
[1727725672450,0.38481,2599.3,2599.2,3.2078]
[1727725674251,1.36527,2599.5,2599.2,3.2078]
[1727725674451,0.3848,2599.4,2599.3,0.38481]
[1727725675157,0.96197,2599.5,2599.2,3.59262]
[1727725675358,0.38481,2599.3,2599.2,3.59262]
[1727725675653,0.3848,2599.4,2599.3,0.38481]
[1727725675859,0.96192,2599.6,2599.3,0.38481]
[1727725676053,0.38478,2599.6,2599.4,0.38479]
[1727725676258,0.38478,2599.6,2599.5,3.59258]
[1727725676656,0.7928,2599.7,2599.5,3.59258]
[1727725677051,1.17755,2599.7,2599.6,0.3924]
[1727725677453,0.7928,2599.7,2599.6,0.77717]
[1727725677959,1.17755,2599.7,2599.6,0.3924]
[1727725678162,0.7928,2599.7,2599.6,0.3924]
[1727725678352,1.17755,2599.7,2599.6,0.3924]
[1727725678556,0.7928,2599.7,2599.6,0.3924]
[1727725678757,1.17755,2599.7,2599.6,0.3924]
[1727725678956,0.7928,2599.7,2599.6,0.3924]
[1727725679156,0.7928,2599.7,2599.6,0.77717]
[1727725679663,0.77425,2599.7,2599.6,0.77717]
[1727725679864,0.3895,2599.7,2599.6,0.77717]
[1727725680365,0.77425,2599.7,2599.6,0.77717]
[1727725680568,0.3895,2599.7,2599.6,0.77717]
[1727725681377,0.38473,2599.9,2599.7,0.38474]
[1727725681564,0.3878,2600.0,2599.8,3.59252]
[1727725681565,0.38471,2600.0,2599.8,3.59252]
[1727725681763,0.7827,2600.1,2599.8,3.2078]
[1727725681965,0.38472,2599.9,2599.8,3.2078]
[1727725682466,1.74444,2600.1,2599.6,0.3924]
[1727725682467,3.4927,2600.1,2599.6,0.3924]
[1727725682768,0.38475,2599.7,2599.6,0.3924]
[1727725683277,0.79045,2599.7,2599.6,0.3924]
[1727725683668,0.4057,2599.7,2599.5,3.2078]
[1727725683868,0.76177,2599.6,2599.5,3.2078]
[1727725684971,0.76177,2599.6,2599.5,3.59258]
[1727725685165,0.377,2599.6,2599.5,3.59258]
[1727725685361,0.38477,2599.6,2599.5,3.2078]
[1727725685876,0.38477,2599.6,2599.5,3.59258]
[1727725686269,2.71,2600.3,2599.5,7.055]
[1727725686473,0.38475,2599.8,2599.6,3.2078]
[1727725686773,0.38475,2599.8,2599.7,0.78415]
[1727725686968,0.3854,2600.1,2599.7,0.3994]
[1727725687173,0.38471,2600.0,2599.9,3.2078]
[1727725687363,0.3854,2600.1,2599.9,3.2078]
[1727725687676,0.7701,2600.1,2599.9,3.59252]
[1727725687872,0.8001,2600.2,2599.9,3.59252]
[1727725687873,0.78458,2600.2,2599.9,3.59252]
[1727725688377,40.8,2600.7,2599.9,3.59252]
[1727725688378,0.38465,2600.4,2600.1,0.38468]
[1727725688669,0.38465,2600.4,2600.0,2.71]
[1727725688670,6.89,2601.3,2600.3,2.71]
[1727725688870,6.47755733,2601.4,2600.7,2.71]
[1727725688871,0.7807,2601.1,2600.7,2.71]
[1727725689072,0.38457,2601.0,2600.7,3.4776]
[1727725689275,0.7807,2601.1,2600.7,3.4776]
[1727725689276,1.16525,2601.1,2600.7,3.8622]
[1727725689575,1.16525,2601.1,2600.9,3.2078]
[1727725689576,0.7807,2601.1,2600.9,3.2078]
[1727725689784,0.4054,2601.1,2600.9,3.2078]
[1727725689968,0.78995,2601.1,2600.9,3.2078]
[1727725690276,0.38456,2601.0,2600.9,3.2078]
[1727725690474,0.38456,2601.0,2600.7,3.4776]
[1727725690665,0.38456,2601.0,2600.7,0.7676]
[1727725690977,0.4054,2601.1,2600.7,0.7676]
[1727725691370,0.38458,2600.9,2600.7,0.3799]
[1727725691568,0.4022,2601.0,2600.7,0.3799]
[1727725691773,0.38463,2600.6,2600.3,0.38465]
[1727725691972,3.1122,2601.0,2600.2,4.2808]
[1727725691973,0.38462,2600.7,2600.5,3.2078]
[1727725692371,0.38462,2600.7,2600.5,3.59243]
[1727725692572,0.38462,2600.7,2600.5,3.2078]
[1727725692773,0.3792,2600.8,2600.5,3.2078]
[1727725692774,0.3792,2600.8,2600.6,0.38461]
[1727725692972,0.38458,2600.9,2600.5,5.9178]
[1727725692973,0.38457,2600.9,2600.5,5.9178]
[1727725693175,0.4022,2601.0,2600.8,3.2078]
[1727725693376,0.4022,2601.0,2600.8,3.59238]
[1727725693679,0.38451,2601.3,2601.0,0.38455]
[1727725693872,0.7722,2601.5,2601.1,3.2078]
[1727725694070,0.38451,2601.4,2601.1,3.59234]
[1727725694270,0.7722,2601.5,2601.1,3.2078]
[1727725694477,1.1567,2601.5,2601.2,0.75483]
[1727725694688,0.7722,2601.5,2601.2,0.75483]
[1727725694887,1.1567,2601.5,2601.2,0.75483]
[1727725695187,1.15669,2601.5,2601.4,3.2078]
[1727725695784,0.38453,2601.2,2601.0,3.2078]
[1727725696585,0.7722,2601.5,2601.0,3.2078]
[1727725696786,0.38452,2601.3,2601.0,3.2078]
[1727725697083,0.38452,2601.3,2601.1,0.38454]
[1727725697283,0.7722,2601.5,2601.0,3.2078]
[1727725697478,0.38451,2601.4,2601.3,3.2078]
[1727725698479,1.15669,2601.5,2601.3,3.59231]
[1727725698678,0.3845,2601.4,2601.3,3.2078]
[1727725699183,1.1567,2601.5,2601.3,3.59231]
[1727725699580,0.7722,2601.5,2601.3,3.2078]
[1727725699786,0.3845,2601.4,2601.3,3.2078]
[1727725700785,0.7722,2601.5,2600.9,3.4792]
[1727725700786,1.73344,2601.5,2600.9,6.687]
[1727725701083,1.73344,2601.5,2601.1,3.2078]
[1727725701285,0.38452,2601.3,2601.1,3.59233]
[1727725701786,1.73344,2601.5,2601.1,3.2078]
[1727725701985,0.38452,2601.3,2601.1,3.59233]
[1727725702182,0.38452,2601.3,2601.1,3.2078]
[1727725702482,0.38451,2601.3,2601.2,0.38453]
[1727725702788,0.38453,2601.2,2601.1,3.59234]
[1727725702989,0.38451,2601.4,2601.2,0.38452]
[1727725703285,0.38451,2601.4,2601.1,3.2078]
[1727725703286,0.38452,2601.3,2601.1,3.59233]
[1727725703488,0.38452,2601.3,2601.1,3.2078]
[1727725703688,0.38453,2601.3,2601.1,3.59234]
[1727725703981,0.38453,2601.3,2601.1,3.59233]
[1727725703982,0.38452,2601.3,2601.1,3.59233]
[1727725704185,0.38453,2601.2,2601.1,3.2078]
[1727725704382,0.38453,2601.2,2600.5,0.96157]
[1727725704383,47.8518,2601.2,2600.4,0.3857]
[1727725704592,47.8518,2601.2,2600.1,0.3946]
[1727725704593,0.96163,2600.4,2600.1,0.09]
[1727725704885,2.71,2600.5,2600.0,0.7632]
[1727725704886,0.38469,2600.1,2600.0,0.7632]
[1727725705390,0.96166,2600.3,2600.0,0.7632]
[1727725705585,0.38469,2600.1,2600.0,0.7632]
[1727725707678,2.71,2600.2,2599.9,3.2078]
[1727725707878,3.09471,2600.0,2599.9,3.2078]
[1727725708689,0.38471,2600.0,2599.9,3.2078]
[1727725710493,3.09471,2600.0,2599.9,3.2078]
[1727725710793,0.38471,2600.0,2599.9,3.2078]
[1727725711189,2.71,2600.2,2599.9,3.2078]
[1727725711585,2.71,2600.2,2599.9,3.59252]
[1727725711797,3.09469,2600.2,2599.9,3.59252]
[1727725712187,0.38469,2600.1,2599.9,3.2078]
[1727725712796,3.09469,2600.2,2599.9,3.2078]
[1727725713188,3.09469,2600.2,2599.9,3.59252]
[1727725713388,0.38469,2600.1,2600.0,0.3891]
[1727725713694,3.09469,2600.2,2600.0,0.3891]
[1727725713996,0.38469,2600.1,2600.0,0.3891]
[1727725715997,0.38469,2600.2,2600.0,0.3891]
[1727725716395,0.38469,2600.1,2600.0,0.3891]
[1727725716891,0.38469,2600.1,2600.0,0.4238]
[1727725718792,0.38469,2600.1,2600.0,0.0347]
[1727725718996,4.23109,2600.1,2600.0,0.0347]
[1727725719595,3.96367,2600.3,2600.0,0.4194]
[1727725719784,3.579,2600.3,2600.1,0.4068]
[1727725719991,0.38468,2600.2,2600.1,0.7773]
[1727725721894,7.85152,2600.7,2600.1,0.7773]
[1727725721895,5.14152,2600.7,2600.1,3.4873]
[1727725722201,0.3839,2600.7,2600.3,2.71]
[1727725722497,0.3846,2600.8,2600.6,3.2078]
[1727725722692,0.38459,2600.8,2600.7,0.3727]
[1727725723494,0.3846,2600.7,2600.6,3.2078]
[1727725724805,0.96144,2600.9,2600.6,3.2078]
[1727725724996,1.164,2601.0,2600.6,3.2078]
[1727725725193,0.3846,2600.7,2600.6,3.2078]
[1727725726588,3.0946,2600.7,2600.6,3.2078]
[1727725726797,0.38463,2600.5,2600.4,0.4054]
[1727725727000,0.96157,2600.6,2600.1,3.5783]
[1727725727198,0.3678,2600.4,2600.1,3.9845]
[1727725727503,0.75246,2600.4,2600.2,0.38468]
[1727725727895,0.3678,2600.4,2600.1,3.9845]
[1727725728698,0.38468,2600.2,2600.1,3.9845]
[1727725728999,2.71,2600.3,2600.0,0.0347]
[1727725729202,3.09469,2600.1,2600.0,0.0347]
[1727725729495,0.38469,2600.1,2600.0,0.0347]
[1727725732896,6.94109,2600.1,2600.0,0.0347]
[1727725733802,10.14889,2600.1,2600.0,0.0347]
[1727725734003,6.94109,2600.1,2600.0,0.0347]
[1727725734307,6.2856,2600.4,2600.0,0.0347]
[1727725734602,6.2856,2600.4,2599.4,3.591]
[1727725734603,0.38481,2599.3,2599.0,0.104]
[1727725734801,0.38481,2599.3,2598.9,0.582]
[1727725734802,0.38478,2599.5,2599.2,0.38482]
[1727725735002,5.9178,2599.7,2599.0,0.3793]
[1727725735210,0.96192,2599.6,2599.1,0.38483]
[1727725735403,0.3848,2599.4,2599.1,0.38483]
[1727725736124,0.38482,2599.3,2599.0,0.76414]
[1727725736405,0.38483,2599.2,2599.0,0.3793]
[1727725736607,0.38483,2599.2,2599.0,0.76415]
[1727725736797,4.55463,2599.4,2599.0,0.3793]
[1727725736999,4.16983,2599.4,2599.0,0.3793]
[1727725737199,0.38484,2599.1,2599.0,0.3793]
[1727725738007,3.2078,2599.7,2599.0,10.1443]
[1727725738203,0.3848,2599.4,2599.3,0.38481]
[1727725738909,3.2078,2599.7,2599.1,0.4046]
[1727725739407,0.38477,2599.6,2599.5,0.38477]
[1727725740214,3.2078,2599.7,2599.5,0.38477]
[1727725740215,3.59256,2599.7,2599.5,0.38477]
[1727725740510,3.59256,2599.7,2599.6,0.38477]
[1727725740812,2.08572,2600.2,2599.4,3.0897]
[1727725740813,0.96176,2600.1,2599.4,3.0897]
[1727725741107,0.38473,2599.9,2599.7,0.38474]
[1727725741305,0.38473,2599.9,2599.7,0.75314]
[1727725741506,0.38473,2599.9,2599.7,0.3684]
[1727725741705,0.38473,2599.9,2599.8,0.38474]
[1727725741915,0.38474,2599.8,2599.7,0.3684]
[1727725742107,0.38473,2599.9,2599.7,0.75314]
[1727725742418,0.96176,2600.1,2599.7,0.75314]
[1727725742713,0.96179,2600.0,2599.6,0.38476]
[1727725742910,0.38475,2599.8,2599.6,3.59256]
[1727725743208,0.96179,2600.0,2599.6,3.2078]
[1727725743209,0.38475,2599.7,2599.6,3.2078]
[1727725743410,0.38475,2599.7,2599.6,3.59257]
[1727725744004,0.96171,2600.2,2599.6,3.59257]
[1727725744005,0.96171,2600.2,2599.6,3.2078]
[1727725744206,0.38475,2599.7,2599.6,3.59256]
[1727725744612,0.38475,2599.7,2599.6,3.2078]
[1727725745007,0.38475,2599.7,2599.6,3.59257]
[1727725745909,0.38475,2599.7,2599.6,3.2078]
[1727725746412,0.38477,2599.6,2599.5,0.38478]
[1727725747110,0.38477,2599.6,2599.4,0.7698]
[1727725747111,4.16957,2600.0,2599.4,0.7698]
[1727725747409,4.16957,2600.0,2599.6,0.38476]
[1727725747410,0.38476,2599.7,2599.6,0.38476]
[1727725748416,0.38474,2599.8,2599.7,0.38474]
[1727725748712,0.96172,2600.2,2599.7,0.38474]
[1727725748713,0.3847,2600.1,2599.7,4.80826]
[1727725748909,3.2078,2600.3,2599.8,3.2078]
[1727725749107,3.2078,2600.3,2599.9,0.3865]
[1727725749313,0.38471,2600.0,2599.9,0.77122]
[1727725749717,0.38471,2600.0,2599.9,4.61762]
[1727725750220,0.38471,2600.0,2599.9,0.3865]
[1727725750413,0.38471,2600.0,2599.9,0.77122]
[1727725750611,0.38471,2600.0,2599.9,0.3865]
[1727725750806,0.38471,2600.0,2599.9,0.77122]
[1727725752111,0.38471,2600.0,2599.9,0.3865]
[1727725752808,1.34571,2600.2,2599.4,0.3901]
[1727725752809,3.094,2600.2,2599.4,3.1001]
[1727725753015,0.38475,2599.7,2599.6,0.75266]
[1727725753213,0.38475,2599.7,2599.6,0.3679]
[1727725754008,0.38475,2599.7,2599.6,0.75267]